fUSD/lending_fUSD_20260221
["ID","MTS","AMOUNT","RATE_DAILY","PERIOD"]
[406288157,1771691443149,-886.07123266,0.00017808,2]
[406288158,1771691443158,-886.07123266,0.00017808,2]
[406288159,1771691443167,-886.07123266,0.00017808,2]
[406288160,1771691443176,-886.07123266,0.00017808,2]
[406288161,1771691443185,-886.07123266,0.00017808,2]
[406288162,1771691443195,-886.07123266,0.00017808,2]
[406288163,1771691443204,-886.07123266,0.00017808,2]
[406288164,1771691443213,-892.40031289,0.00017808,2]
[406288165,1771691443222,-892.40031289,0.00017808,2]
[406288166,1771691443232,-892.40031289,0.00017808,2]
[406288167,1771691443241,-892.40031289,0.00017808,2]
[406288168,1771691443251,-892.40031289,0.00017808,2]
[406288169,1771691443261,-892.40031289,0.00017808,2]
[406288170,1771691443270,-892.40031289,0.00017808,2]
[406288171,1771691443279,-892.40031289,0.00017808,2]
[406288172,1771691443289,-1153.81050555,0.00017808,2]
[406288173,1771691443298,-1153.81050555,0.00017808,2]
[406288175,1771691443307,-1153.81050555,0.00017808,2]
[406288176,1771691443316,-800.0,0.00017808,2]
[406288177,1771691443326,-602.0,0.00017838,2]
[406288178,1771691443335,-602.0,0.00017841,2]
[406288179,1771691443344,-1004.67257269,0.0001786,2]
[406288180,1771691443352,-400.0,0.000179,6]
[406288181,1771691443361,-1277.38776608,0.000179,2]
[406288182,1771691443371,-855.0,0.00017913,2]
[406288183,1771691443380,-602.0,0.00017959,2]
[406288184,1771691443390,-602.0,0.00017963,2]
[406288185,1771691443399,-155.9462674,0.0001799,2]
[406288187,1771691443408,-150.72818691,0.00018,3]
[406288189,1771691443418,-1568839.93934394,0.00018,2]
[406288197,1771691443797,-1018.45026614,0.0001471,2]
[406288198,1771691443812,-382.39999999,0.0001471,2]
[406288199,1771691443824,-1335.42542565,0.0001471,2]
[406288201,1771691443857,-15551.17612194,0.0001471,2]
[406288203,1771691443867,-242025.26900225,0.00018,2]
[406288205,1771691443878,-275.77490633,0.00018,2]
[406288207,1771691443888,-13625.55826817,0.00018,2]
[406288210,1771691443907,-378.66,0.00018,2]
[406288214,1771691443933,-534.0,0.00018,2]
[406288234,1771691444108,-7749.89872804,0.00018,2]
[406288236,1771691444119,-338.88732698,0.00018,2]
[406288239,1771691444133,-12055.30360452,0.00018,2]
[406288241,1771691444143,-21695.11924382,0.00018,2]
[406288257,1771691542956,700.0,0.0001,2]
[406288258,1771691546799,500.0,0.0001,2]
[406288261,1771691547687,500.0,0.0001,2]
[406288262,1771691547972,500.0,0.0001,2]
[406288263,1771691548458,721.77034144,0.0001,2]
[406288265,1771691604332,-818.43544292,0.00012779,2]
[406288266,1771691604366,-319.89647708,0.00012779,2]
[406288267,1771691604397,-261.81596152,0.00012852,2]
[406288268,1771691604427,-150.0,0.00012878,2]
[406288269,1771691701389,300.0,0.00012878,2]
[406288270,1771691701426,300.0,0.00012878,2]
[406288271,1771691701909,1200.0,0.00012878,2]
[406288272,1771691703788,545.6236286,0.00012779,2]
[406288273,1771691708882,208.03569669,0.00012779,2]
[406288274,1771691716126,533.07156432,0.00012779,2]
[406288275,1771691761361,300.0,0.00012878,2]
[406288276,1771691761980,150.0,0.00012878,2]
[406288277,1771691766054,245.74941876,0.00012878,2]
[406288278,1771691780336,428.96454463,0.00012878,2]
[406288279,1771691780435,500.0,0.00012878,2]
[406288280,1771691781865,851.59184406,0.00012779,2]
[406288281,1771691786644,1336.6775399,0.00012779,2]
[406288282,1771691786671,10000.01,0.00012779,2]
[406288283,1771691786698,3494.33782721,0.00012779,2]
[406288284,1771691788231,156.268,0.00012878,2]
[406288285,1771691791750,203.50410356,0.00012878,2]
[406288286,1771691801193,500.0,0.00012878,2]
[406288287,1771691801403,587.76318037,0.00012878,2]
[406288288,1771691801549,500.0,0.00012878,2]
[406288289,1771691821281,300.0,0.00012878,2]
[406288290,1771691824012,363.74908574,0.00012779,2]
[406288291,1771691834159,3894.38780312,0.00012779,2]
[406288292,1771691834183,10000.01,0.00012779,2]
[406288293,1771691834207,4920.07990082,0.00012779,2]
[406288294,1771691837964,500.0,0.0001,2]
[406288295,1771691838556,500.0,0.0001,2]
[406288296,1771691839059,500.0,0.0001,2]
[406288297,1771691839613,500.0,0.0001,2]
[406288298,1771691840100,500.0,0.0001,2]
[406288299,1771691840388,500.0,0.0001,2]
[406288300,1771691840862,500.0,0.0001,2]
[406288301,1771691840897,500.0,0.0001,2]
[406288302,1771691841345,500.0,0.0001,2]
[406288303,1771691842948,579.93009918,0.0001,2]
[406288304,1771691842970,350.30955938,0.0001,2]
[406288305,1771691846875,355.38104288,0.00012779,2]
[406288306,1771691847761,501.35556143,0.0001,2]
[406288307,1771691847793,500.0,0.0001,2]
[406288308,1771691848136,500.0,0.0001,2]
[406288309,1771691848280,500.0,0.0001,2]
[406288310,1771691849635,600.0,0.0001,2]
[406288311,1771691850121,600.0,0.0001,2]
[406288312,1771691850597,600.0,0.0001,2]
[406288313,1771691851079,600.0,0.0001,2]
[406288314,1771691851201,501.03439098,0.0001,2]
[406288315,1771691851553,600.0,0.0001,2]
[406288316,1771691851600,500.0,0.0001,2]
[406288317,1771691852037,600.0,0.0001,2]
[406288318,1771691852160,500.0,0.0001,2]
[406288319,1771691852437,500.0,0.0001,2]
[406288320,1771691852538,600.0,0.0001,2]
[406288321,1771691853014,600.0,0.0001,2]
[406288322,1771691853049,500.0,0.0001,2]
[406288323,1771691853522,600.0,0.0001,2]
[406288324,1771691853866,506.84662347,0.0001,2]
[406288325,1771691854057,600.0,0.0001,2]
[406288326,1771691854695,600.0,0.0001,2]
[406288327,1771691855024,600.0,0.0001,2]
[406288328,1771691855522,600.0,0.0001,2]
[406288329,1771691856100,392.12898555,0.0001,2]
[406288330,1771691856124,307.87101445,0.0001,2]
[406288331,1771691864910,9692.13898555,0.00012779,2]
[406288332,1771691864935,10000.01,0.00012779,2]
[406288333,1771691864959,10000.01,0.00012779,2]
[406288334,1771691864983,10000.01,0.00012779,2]
[406288335,1771691865007,10000.01,0.00012779,2]
[406288336,1771691865031,10000.01,0.00012779,2]
[406288337,1771691865056,10000.01,0.00012779,2]
[406288338,1771691905256,1258.6,0.00012479,2]
[406288339,1771691907463,546.5105444,0.0001,2]
[406288340,1771691907495,2433.16988335,0.0001,2]
[406288341,1771691907848,223.28080881,0.0001,2]
[406288342,1771692019395,10000.0,0.00015,30]
[406288343,1771692125603,5240.86,0.00015,30]
[406288344,1771692136032,500.0,0.0001,2]
[406288345,1771692139920,500.0,0.0001,2]
[406288346,1771692140403,500.0,0.0001,2]
[406288347,1771692140974,500.0,0.0001,2]
[406288348,1771692141465,500.0,0.0001,2]
[406288349,1771692142054,500.0,0.0001,2]
[406288350,1771692142509,500.0,0.0001,2]
[406288351,1771692142991,500.0,0.0001,2]
[406288352,1771692143490,500.0,0.0001,2]
[406288353,1771692144063,665.92839046,0.0001,2]
[406288354,1771692153106,500.0,0.0001,2]
[406288355,1771692153552,500.0,0.0001,2]
[406288356,1771692156467,-1600.0,0.00012488,2]
[406288357,1771692168621,-300.0,0.00012678,2]
[406288358,1771692168648,-300.0,0.00012678,2]
[406288359,1771692168675,-300.0,0.00012678,2]
[406288360,1771692171609,-0.01,0.00012679,2]
[406288361,1771692171861,-0.02,0.00012679,2]
[406288362,1771692171926,-0.04,0.00012679,2]
[406288363,1771692172163,567.72789604,0.00012579,2]
[406288364,1771692174818,-0.08,0.00012679,2]
[406288365,1771692174853,-0.16,0.00012679,2]
[406288366,1771692174882,-0.32,0.00012679,2]
[406288367,1771692175407,2632.28210396,0.00012579,2]
[406288368,1771692183395,173.356127,0.0001214,2]
[406288369,1771692183567,-300.0,0.00012578,2]
[406288370,1771692183878,-4839.30716038,0.00012579,2]
[406288371,1771692183930,-2612.33308863,0.00012579,2]
[406288372,1771692183955,-4775.34382274,0.00012579,2]
[406288373,1771692194621,1972.41027438,0.00012579,2]
[406288374,1771692208595,151.0,0.00012676,2]
[406288375,1771692208973,151.0,0.00012676,2]
[406288376,1771692209337,151.0,0.00012676,2]
[406288377,1771692217141,-0.64,0.00012679,2]
[406288378,1771692217163,-9998.73,0.00012679,2]
[406288379,1771692217443,-2744.5084,0.00012679,2]
[406288380,1771692217475,-4510.9932,0.00012679,2]
[406288381,1771692226092,-10000.01,0.00012679,2]
[406288382,1771692226219,-10000.01,0.00012679,2]
[406288383,1771692241643,300.0,0.00012678,2]
[406288384,1771692245500,500.0,0.00012389,2]
[406288385,1771692247736,412.30637322,0.00012579,2]
[406288386,1771692254190,150.0,0.00012652,2]
[406288387,1771692254791,150.0,0.00012652,2]
[406288388,1771692272256,500.0,0.00012678,2]
[406288389,1771692272289,222.6782555,0.00012678,2]
[406288390,1771692272558,411.43422626,0.00012678,2]
[406288391,1771692272714,500.0,0.00012678,2]
[406288392,1771692274792,500.0,0.00012678,2]
[406288393,1771692274860,500.0,0.00012678,2]
[406288394,1771692274896,400.59114502,0.00012678,2]
[406288395,1771692274920,99.40885498,0.00012678,2]
[406288396,1771692274953,500.0,0.00012678,2]
[406288397,1771692275010,500.0,0.00012678,2]
[406288398,1771692275075,213.49975572,0.00012678,2]
[406288399,1771692276693,500.0,0.00012678,2]
[406288400,1771692301218,300.0,0.00012678,2]
[406288401,1771692301276,300.0,0.00012678,2]
[406288402,1771692301338,1200.0,0.00012678,2]
[406288403,1771692301940,150.0,0.00012678,2]
[406288404,1771692314780,1237.1013893,0.00012579,2]
[406288405,1771692314808,77.83879362,0.00012579,2]
[406288406,1771692320601,-159.0,0.00012679,2]
[406288407,1771692320640,-162.0,0.00012679,2]
[406288408,1771692320675,-150.0,0.00012679,2]
[406288409,1771692320710,-330.52714209,0.00012679,2]
[406288410,1771692320845,-0.01,0.00012679,2]
[406288411,1771692323641,-0.02,0.00012679,2]
[406288412,1771692323862,-0.04,0.00012679,2]
[406288413,1771692323895,-833.44985364,0.00012679,2]
[406288414,1771692326628,-833.52985364,0.00012679,2]
[406288415,1771692326652,-3332.95029272,0.00012679,2]
[406288416,1771692326734,-5000.01,0.00012679,2]
[406288417,1771692344331,5000.01,0.00012579,2]
[406288418,1771692344352,5000.01,0.00012579,2]
[406288419,1771692348781,-5000.01,0.00012579,2]
[406288420,1771692348888,-1933.07193351,0.00012579,2]
[406288421,1771692361398,253.0,0.00012678,2]
[406288422,1771692378023,274.87091548,0.00012579,2]
[406288423,1771692382050,-159.0,0.00012679,2]
[406288424,1771692382078,-150.0,0.00012679,2]
[406288425,1771692382168,-3854.13908452,0.00012679,2]
[406288426,1771692382198,-5000.01,0.00012679,2]
[406288427,1771692385031,-5000.01,0.00012679,2]
[406288428,1771692385253,-5000.01,0.00012679,2]
[406288429,1771692391725,182.03123456,0.00012579,2]
[406288430,1771692432038,166.86045834,0.00012579,2]
[406288431,1771692434424,-159.0,0.00012679,2]
[406288432,1771692434450,-150.0,0.00012679,2]
[406288433,1771692434518,-4073.01,0.00012679,2]
[406288434,1771692434545,-5000.01,0.00012679,2]
[406288435,1771692436139,500.0,0.0001,2]
[406288436,1771692436633,600.0,0.0001,2]
[406288437,1771692437444,-876.62678862,0.00012579,2]
[406288438,1771692437476,-3246.75642276,0.00012679,2]
[406288439,1771692437565,-5000.01,0.00012679,2]
[406288440,1771692437794,500.0,0.0001,2]
[406288441,1771692438339,500.0,0.0001,2]
[406288442,1771692440499,500.0,0.0001,2]
[406288443,1771692440919,500.0,0.0001,2]
[406288444,1771692441363,500.0,0.0001,2]
[406288445,1771692441836,670.290484,0.0001,2]
[406288446,1771692447458,200.0,0.00012652,2]
[406288447,1771692447555,500.0,0.0001,2]
[406288448,1771692448054,500.0,0.0001,2]
[406288449,1771692448553,615.76950961,0.0001,2]
[406288450,1771692452670,500.0,0.0001,2]
[406288451,1771692452928,508.39055467,0.0001,2]
[406288452,1771692453193,500.0,0.0001,2]
[406288453,1771692453303,5.55945172,0.0001,2]
[406288454,1771692453324,494.44054828,0.0001,2]
[406288455,1771692453668,500.0,0.0001,2]
[406288456,1771692453778,500.0,0.0001,2]
[406288457,1771692454258,500.0,0.0001,2]
[406288458,1771692454711,500.0,0.0001,2]
[406288459,1771692455673,500.0,0.0001,2]
[406288460,1771692456182,500.0,0.0001,2]
[406288461,1771692456684,500.0,0.0001,2]
[406288462,1771692456954,500.0,0.0001,2]
[406288463,1771692457201,500.0,0.0001,2]
[406288464,1771692457730,5.56945172,0.0001,2]
[406288465,1771692457753,494.43054828,0.0001,2]
[406288466,1771692458199,500.0,0.0001,2]
[406288467,1771692458719,500.0,0.0001,2]
[406288468,1771692459251,500.0,0.0001,2]
[406288469,1771692459726,500.0,0.0001,2]
[406288470,1771692460224,926.19785347,0.0001,2]
[406288471,1771692481800,150.0,0.00012678,2]
[406288472,1771692486758,155.87477885,0.00012678,2]
[406288473,1771692571880,-4694.13522115,0.00012579,2]
[406288474,1771692572012,-5000.01,0.00012579,2]
[406288475,1771692577930,-305.85477885,0.00012579,2]
[406288476,1771692577959,-183.24727698,0.00012579,2]
[406288477,1771692577987,-584.41785908,0.00012579,2]
[406288478,1771692578071,-2852.97017018,0.00012579,2]
[406288479,1771692578112,-5000.01,0.00012579,2]
[406288485,1771692631340,-5000.01,0.00012515,2]
[406288486,1771692631350,-212.0,0.00012578,2]
[406288487,1771692631359,-1200.0,0.00012578,2]
[406288488,1771692631369,-253.0,0.00012578,2]
[406288489,1771692631378,-1066.77366913,0.00012579,2]
[406288490,1771692631401,-4453.58971882,0.00012579,2]
[406288491,1771692631410,-175.2906875,0.00012579,2]
[406288492,1771692631419,-378.48526402,0.00012579,2]
[406288493,1771692631428,-159.0,0.00012579,3]
[406288494,1771692631437,-162.0,0.00012579,3]
[406288495,1771692631447,-151.0,0.00012579,3]
[406288496,1771692631456,-189.90495807,0.00012669,2]
[406288497,1771692631465,-819.1802478,0.00012679,2]
[406288498,1771692631480,-408.37212029,0.00012679,2]
[406288499,1771692631500,-869.87933191,0.00012679,2]
[406288500,1771692631511,-2082.04992032,0.00012679,2]
[406288501,1771692631522,-423.83857968,0.00012679,2]
[406288502,1771692631531,-617.53483032,0.00012679,2]
[406288503,1771692631542,-961.356,0.00012679,2]
[406288504,1771692631560,-104356.75520876,0.00012679,2]
[406288505,1771692631571,-8124.60742335,0.00012679,2]
[406288506,1771692631582,-6808.47065703,0.00012679,2]
[406288507,1771692631617,-292.97700002,0.00012679,2]
[406288524,1771692637475,-255.27338,0.00012679,2]
[406288525,1771692637486,-640.93868497,0.00012679,2]
[406288526,1771692637497,-3377942.08681555,0.00012679,2]
[406288527,1771692637506,-2500.0,0.00012679,2]
[406288528,1771692637516,-250.0,0.00012679,2]
[406288529,1771692637525,-3599.76375169,0.00012685,2]
[406288530,1771692637534,-3913.0,0.0001274,2]
[406288531,1771692637543,-200.0,0.00012771,2]
[406288532,1771692637552,-545.79913084,0.00012771,2]
[406288533,1771692637562,-151.0,0.00012771,2]
[406288534,1771692637571,-151.0,0.00012771,2]
[406288535,1771692637580,-151.0,0.00012771,2]
[406288536,1771692637589,-151.0,0.00012771,2]
[406288537,1771692637598,-151.0,0.00012771,2]
[406288538,1771692637607,-202.62533237,0.00012771,2]
[406288539,1771692637617,-151.0,0.00012771,2]
[406288540,1771692637628,-151.0,0.00012771,2]
[406288541,1771692637637,-151.0,0.00012771,2]
[406288542,1771692637648,-500.0,0.00012771,2]
[406288543,1771692637658,-151.0,0.00012771,2]
[406288544,1771692637667,-151.0,0.00012771,2]
[406288545,1771692637677,-500.0,0.00012771,2]
[406288546,1771692637686,-151.0,0.00012771,2]
[406288548,1771692637696,-500.0,0.00012771,2]
[406288550,1771692637704,-151.0,0.00012771,2]
[406288552,1771692637714,-151.0,0.00012771,2]
[406288554,1771692637723,-500.0,0.00012771,2]
[406288555,1771692637732,-151.0,0.00012771,2]
[406288556,1771692637742,-151.0,0.00012771,2]
[406288558,1771692637751,-500.0,0.00012771,2]
[406288560,1771692637760,-151.0,0.00012771,2]
[406288562,1771692637769,-500.0,0.00012771,2]
[406288564,1771692637778,-151.0,0.00012771,2]
[406288566,1771692637788,-151.0,0.00012771,2]
[406288568,1771692637797,-500.0,0.00012771,2]
[406288571,1771692637807,-151.0,0.00012771,2]
[406288573,1771692637816,-151.0,0.00012771,2]
[406288575,1771692637826,-500.0,0.00012771,2]
[406288577,1771692637835,-151.0,0.00012771,2]
[406288579,1771692637844,-151.0,0.00012771,2]
[406288581,1771692637854,-500.0,0.00012771,2]
[406288583,1771692637863,-151.0,0.00012771,2]
[406288585,1771692637872,-500.0,0.00012771,2]
[406288587,1771692637881,-151.0,0.00012771,2]
[406288589,1771692637891,-500.0,0.00012771,2]
[406288591,1771692637901,-151.0,0.00012771,2]
[406288593,1771692637910,-151.0,0.00012771,2]
[406288595,1771692637920,-151.0,0.00012771,2]
[406288597,1771692637929,-151.0,0.00012771,2]
[406288599,1771692637938,-151.0,0.00012771,2]
[406288601,1771692637947,-151.0,0.00012771,2]
[406288603,1771692637956,-151.0,0.00012771,2]
[406288605,1771692637966,-500.0,0.00012771,2]
[406288607,1771692637976,-500.0,0.00012771,2]
[406288609,1771692637985,-500.0,0.00012771,2]
[406288611,1771692637995,-500.0,0.00012771,2]
[406288613,1771692638004,-500.0,0.00012771,2]
[406288616,1771692638023,-500.0,0.00012771,2]
[406288618,1771692638033,-500.0,0.00012771,2]
[406288620,1771692638046,-500.0,0.00012771,2]
[406288622,1771692638056,-500.0,0.00012771,2]
[406288624,1771692638067,-500.0,0.00012771,2]
[406288627,1771692638077,-500.0,0.00012771,2]
[406288629,1771692638089,-500.0,0.00012777,2]
[406288631,1771692638099,-150.99,0.00012777,2]
[406288633,1771692638109,-4999.99,0.00012777,2]
[406288635,1771692638121,-5403.05,0.00012777,2]
[406288637,1771692638131,-150.99,0.00012777,2]
[406288639,1771692638140,-2196.66,0.00012777,2]
[406288641,1771692638150,-9999.99,0.00012777,2]
[406288643,1771692638159,-200774.85,0.00012777,2]
[406288645,1771692638169,-4091.44,0.00012777,2]
[406288647,1771692638178,-9999.99,0.00012777,2]
[406288649,1771692638187,-349.76,0.00012777,2]
[406288651,1771692638196,-999.99,0.00012777,2]
[406288653,1771692638205,-9999.99,0.00012777,2]
[406288655,1771692638214,-7572.44,0.00012777,2]
[406288657,1771692638223,-299.99,0.00012778,2]
[406288659,1771692638233,-5301.71,0.00012778,2]
[406288661,1771692638242,-9999.99,0.00012778,2]
[406288663,1771692638251,-1635.297,0.00012778,2]
[406288665,1771692638260,-155.14,0.00012778,2]
[406288667,1771692638269,-271.58,0.00012877,2]
[406288669,1771692638278,-32860.742,0.00012879,2]
[406288671,1771692638287,-1000.0,0.00012879,2]
[406288673,1771692638297,-500.0,0.00013051,2]
[406288675,1771692638307,-16933.1019335,0.00013166,2]
[406288677,1771692638317,-13373.34355812,0.00013166,2]
[406288679,1771692638327,-1000.0,0.00013169,2]
[406288681,1771692638337,-1000.0,0.00013178,2]
[406288683,1771692638347,-1000.0,0.00013178,2]
[406288685,1771692638358,-153.54765348,0.0001323,2]
[406288687,1771692638367,-619.03186016,0.00013261,2]
[406288689,1771692638377,-200.0,0.00013319,2]
[406288691,1771692638387,-500.0,0.00013325,2]
[406288693,1771692638396,-143484.9,0.00013357,2]
[406288695,1771692638405,-1229.0,0.00013385,2]
[406288697,1771692638415,-279997.60502485,0.00013392,2]
[406288699,1771692638424,-4205.90373644,0.000134,2]
[406288701,1771692638434,-1164.0,0.00013411,2]
[406288703,1771692638443,-494.0,0.00013424,2]
[406288705,1771692638452,-222.0,0.00013451,2]
[406288707,1771692638461,-500.0,0.00013599,2]
[406288709,1771692638471,-500.0,0.00013698,2]
[406288711,1771692638480,-505.61228041,0.00013698,2]
[406288713,1771692638490,-500.0,0.00013698,2]
[406288715,1771692638499,-500.0,0.00013698,2]
[406288716,1771692638508,-500.0,0.00013698,2]
[406288718,1771692638517,-500.0,0.00013698,2]
[406288719,1771692638527,-500.0,0.00013698,2]
[406288721,1771692638536,-500.0,0.00013698,2]
[406288723,1771692638545,-500.0,0.00013698,2]
[406288725,1771692638555,-500.0,0.00013698,2]
[406288728,1771692638568,-500.0,0.00013698,2]
[406288730,1771692638578,-500.0,0.00013698,2]
[406288732,1771692638588,-500.0,0.00013698,2]
[406288734,1771692638597,-500.0,0.00013698,2]
[406288736,1771692638606,-500.0,0.00013698,2]
[406288738,1771692638616,-500.0,0.00013698,2]
[406288739,1771692638625,-500.0,0.00013698,2]
[406288740,1771692638635,-500.0,0.00013698,2]
[406288741,1771692638645,-500.0,0.00013698,2]
[406288742,1771692638655,-500.0,0.00013698,2]
[406288743,1771692638664,-500.0,0.00013698,2]
[406288744,1771692638674,-500.0,0.00013698,2]
[406288745,1771692638684,-536.36,0.00013698,2]
[406288746,1771692638693,-500.0,0.00013698,2]
[406288747,1771692638703,-500.0,0.00013698,2]
[406288748,1771692638712,-500.0,0.00013698,2]
[406288749,1771692638721,-500.0,0.00013698,2]
[406288750,1771692638730,-500.0,0.00013698,2]
[406288751,1771692638739,-500.0,0.00013698,2]
[406288752,1771692638749,-500.0,0.00013698,2]
[406288753,1771692638758,-500.0,0.00013698,2]
[406288754,1771692638768,-500.0,0.00013698,2]
[406288755,1771692638777,-500.0,0.00013698,2]
[406288756,1771692638787,-500.0,0.00013698,2]
[406288757,1771692638796,-500.0,0.00013698,2]
[406288758,1771692638805,-500.0,0.00013698,2]
[406288759,1771692638815,-500.0,0.00013698,2]
[406288760,1771692638825,-500.0,0.00013698,2]
[406288761,1771692638834,-500.0,0.00013698,2]
[406288762,1771692638843,-500.0,0.00013698,2]
[406288763,1771692638852,-500.0,0.00013698,2]
[406288764,1771692638862,-500.0,0.00013698,2]
[406288765,1771692638871,-500.0,0.00013698,2]
[406288766,1771692638880,-500.0,0.00013698,2]
[406288767,1771692638890,-500.0,0.00013698,2]
[406288768,1771692638900,-500.0,0.00013698,2]
[406288769,1771692638909,-500.0,0.00013698,2]
[406288770,1771692638918,-500.0,0.00013698,2]
[406288771,1771692638928,-500.0,0.00013698,2]
[406288772,1771692638939,-500.0,0.00013698,2]
[406288773,1771692638948,-500.0,0.00013698,2]
[406288774,1771692638959,-500.0,0.00013698,2]
[406288775,1771692638969,-500.0,0.00013698,2]
[406288776,1771692638978,-500.0,0.00013698,2]
[406288777,1771692638988,-500.0,0.00013698,2]
[406288778,1771692638998,-500.0,0.00013698,2]
[406288779,1771692639007,-500.0,0.00013698,2]
[406288781,1771692639224,-500.0,0.00013698,2]
[406288782,1771692639235,-500.0,0.00013698,2]
[406288783,1771692639244,-500.0,0.00013698,2]
[406288784,1771692639253,-500.0,0.00013698,2]
[406288785,1771692639262,-500.0,0.00013698,2]
[406288786,1771692639271,-500.0,0.00013698,2]
[406288787,1771692639280,-500.0,0.00013698,2]
[406288788,1771692639289,-500.0,0.00013698,2]
[406288789,1771692639298,-500.0,0.00013698,2]
[406288790,1771692639307,-500.0,0.00013698,2]
[406288791,1771692639316,-500.0,0.00013698,2]
[406288792,1771692639325,-500.0,0.00013698,2]
[406288793,1771692639335,-500.0,0.00013698,2]
[406288794,1771692639344,-500.0,0.00013698,2]
[406288795,1771692639353,-500.0,0.00013698,2]
[406288796,1771692639362,-500.0,0.00013698,2]
[406288797,1771692639371,-500.0,0.00013698,2]
[406288798,1771692639380,-1238.83,0.00013698,2]
[406288799,1771692639389,-1238.83,0.00013698,2]
[406288800,1771692639398,-1238.83,0.00013698,2]
[406288801,1771692639407,-1238.83,0.00013698,2]
[406288802,1771692639416,-1238.83,0.00013698,2]
[406288803,1771692639425,-1238.83,0.00013698,2]
[406288804,1771692639434,-1238.83,0.00013698,2]
[406288805,1771692639444,-1238.83,0.00013698,2]
[406288806,1771692639453,-1238.83,0.00013698,2]
[406288807,1771692639462,-1238.83,0.00013698,2]
[406288808,1771692639471,-1238.83,0.00013698,2]
[406288809,1771692639480,-1238.83,0.00013698,2]
[406288810,1771692639489,-1238.83,0.00013698,2]
[406288812,1771692639498,-1238.83,0.00013698,2]
[406288814,1771692639507,-1238.83,0.00013698,2]
[406288816,1771692639516,-1238.83,0.00013698,2]
[406288818,1771692639526,-1238.83,0.00013698,2]
[406288819,1771692639535,-500.0,0.00013698,2]
[406288820,1771692639544,-500.0,0.00013698,2]
[406288821,1771692639553,-500.0,0.00013698,2]
[406288822,1771692639561,-500.0,0.00013698,2]
[406288823,1771692639571,-500.0,0.00013698,2]
[406288824,1771692639579,-500.0,0.00013698,2]
[406288825,1771692639588,-500.0,0.00013698,2]
[406288826,1771692639597,-500.0,0.00013698,2]
[406288827,1771692639606,-500.0,0.00013698,2]
[406288828,1771692639616,-500.0,0.00013698,2]
[406288829,1771692639625,-500.0,0.00013698,2]
[406288830,1771692639634,-500.0,0.00013698,2]
[406288831,1771692639643,-500.0,0.00013698,2]
[406288832,1771692639652,-500.0,0.00013698,2]
[406288833,1771692639661,-500.0,0.00013698,2]
[406288834,1771692639670,-500.0,0.00013698,2]
[406288835,1771692639678,-500.0,0.00013698,2]
[406288836,1771692639687,-500.0,0.00013698,2]
[406288837,1771692639696,-500.0,0.00013698,2]
[406288838,1771692639706,-500.0,0.00013698,2]